[Event "FIDE WCCC Open-08 2024"]
[Site "Montesilvano"]
[Date "2024.11.22"]
[Round "7.19"]
[White "Hu, Junyan"]
[Black "Kalinin, Bogdan"]
[Result "1-0"]
[ECO "B33"]
[WhiteElo "1924"]
[BlackElo "1548"]
[Annotator "NA RC"]
[PlyCount "117"]
[EventDate "2024.11.18"]
[EventType "swiss"]
[EventCountry "ITA"]
[SourceTitle "playchess.com"]
[Source "ChessBase"]
[SourceQuality "1"]
[TimeControl "5400+30"]

1. e4 {[%emt 0:00:03]} c5 {[%emt 0:00:06]} 2. Nf3 {[%emt 0:00:04]} Nc6 {[%emt 0:00:06]} 3. d4 {[%emt 0:00:03]} cxd4 {[%emt 0:00:22]} 4. Nxd4 {[%emt 0:00:03]} Nf6 {[%emt 0:00:10]} 5. Nc3 {[%emt 0:00:02]} e5 {[%emt 0:00:16]} 6. Ndb5 {[%emt 0:00:05]} d6 {[%emt 0:00:12]} 7. Nd5 {[%emt 0:00:08]} Nxd5 {[%emt 0:00:22]} 8. exd5 {[%emt 0:00:04]} Nb8 {[%emt 0:00:17]} 9. a4 {[%emt 0:00:16]} Be7 {[%emt 0:00:19]} 10. Be2 {[%emt 0:00:22]} O-O {[%emt 0:00:15]} 11. O-O {[%emt 0:00:02]} a6 {[%emt 0:00:17]} 12. Na3 {[%emt 0:00:52]} f5 {[%emt 0:00:34] B33: Sicilian: Pelikan and Sveshnikov Variations.} 13. Bd2 {[%emt 0:01:30] 13.Nc4 is a critical line.} b6 {[%emt 0:07:44]} 14. a5 {[%emt 0:00:26]} b5 {[%emt 0:01:00]} 15. c4 {[%emt 0:00:02]} bxc4 {[%emt 0:01:00]} 16. Nxc4 {[%emt 0:00:20]} Nd7 {[%emt 0:01:30]} 17. f4 {[%emt 0:01:41]} e4 $146 {[%emt 0:02:43]} ({Predecessor:} 17... Rb8 18. Kh1 Bb7 19. Be3 exf4 20. Bxf4 Nc5 21. Rc1 Ne4 22. Bf3 Bg5 23. Bxg5 Qxg5 {1-0 Ribera Veganzones,S (2341)-Pace,C (2184) EU-ch Small Nations 5th 2024 (8)}) 18. Rc1 {[%emt 0:02:14]} Rb8 {[%emt 0:04:23]} 19. b4 $14 {[%emt 0:01:44]} Nf6 {[%emt 0:10:54]} 20. Nb6 {[%emt 0:02:58]} Rxb6 {[%emt 0:00:40]} 21. axb6 {[%emt 0:00:23]} Qxb6+ {[%emt 0:00:07]} 22. Kh1 {[%emt 0:00:34]} Bd7 {[%emt 0:06:14]} 23. Qb3 {[%emt 0:08:08]} Bb5 {[%emt 0:03:39]} 24. Be3 {[%emt 0:00:22]} Qb7 {[%emt 0:03:18]} 25. Bxb5 {[%emt 0:00:43]} Qxb5 {[%emt 0:00:48]} 26. Rfd1 {[%emt 0:03:51]} Rb8 {[%emt 0:04:14]} 27. h3 {[%emt 0:02:47]} Qxb4 {[%emt 0:52:30]} 28. Rc8+ {[%emt 0:00:00]} Kf7 {[%emt 0:00:00]} 29. Rxb8 {[%emt 0:00:00]} Qa5 {[%emt 0:00:00]} 30. Bb6 {[%emt 0:00:00]} Qb5 {[%emt 0:00:00]} 31. Qxb5 {[%emt 0:01:56]} axb5 {[%emt 0:00:00]} 32. Bd8 {[%emt 0:00:16]} Bxd8 {[%emt 0:00:00]} 33. Rxd8 {[%emt 0:00:10]} e3 {[%emt 0:00:00]} 34. Rb8 {[%emt 0:00:41]} Ne4 {[%emt 0:00:00]} 35. Re1 {[%emt 0:00:26]} e2 {[%emt 0:00:00]} 36. Kg1 {[%emt 0:00:27]} Nc3 {[%emt 0:00:00]} 37. Kf2 {[%emt 0:00:08]} Nxd5 {[%emt 0:00:00]} 38. Rxb5 {[%emt 0:00:09]} Nc3 {[%emt 0:00:00]} 39. Rb3 {[%emt 0:00:20]} Ne4+ {[%emt 0:00:00]} 40. Kxe2 {[%emt 0:00:22]} h6 {[%emt 0:00:00]} 41. Rb7+ {[%emt 0:00:28]} Kf6 {[%emt 0:00:00]} 42. Reb1 {[%emt 0:00:36]} g5 {[%emt 0:00:00]} 43. fxg5+ {[%emt 0:00:22]} hxg5 {[%emt 0:00:00]} 44. R1b4 {[%emt 0:00:16]} Nc5 {[%emt 0:00:00]} 45. R7b5 {[%emt 0:00:09]} Ne6 {[%emt 0:00:00]} 46. Rd5 {[%emt 0:00:09]} Nf4+ {[%emt 0:00:00]} 47. Rxf4 {[%emt 0:00:06]} gxf4 {[%emt 0:00:00]} 48. Rxd6+ {[%emt 0:00:04]} Ke5 {[%emt 0:00:00]} 49. Ra6 {[%emt 0:00:40]} Ke4 {[%emt 0:00:00]} 50. h4 {[%emt 0:00:04]} Ke5 {[%emt 0:00:00]} 51. h5 {[%emt 0:00:07]} Ke4 {[%emt 0:00:00]} 52. h6 {[%emt 1:18:47]} Ke5 {[%emt 0:00:00]} 53. h7 {[%emt 0:00:00]} Kd5 {[%emt 0:00:00]} 54. h8=Q {[%emt 0:00:00]} Ke4 {[%emt 0:00:00]} 55. Qe8+ {[%emt 0:00:00]} Kd4 {[%emt 0:00:00]} 56. Rd6+ {[%emt 0:00:00]} Kc4 {[%emt 0:00:00]} 57. Qc6+ {[%emt 0:00:00]} Kb3 {[%emt 0:00:00]} 58. Qb5+ {[%emt 0:00:00]} Ka3 {[%emt 0:00:00]} 59. Ra6# {[%emt 0:00:00]} 1-0

[Event "FIDE WCCC Open-08 2024"]
[Site "Montesilvano"]
[Date "2024.11.22"]
[Round "7.20"]
[White "Cardas, Serghei"]
[Black "Alloussi, Arian"]
[Result "0-1"]
[ECO "D36"]
[WhiteElo "1627"]
[BlackElo "1745"]
[Annotator "NA RC"]
[PlyCount "110"]
[EventDate "2024.11.18"]
[EventType "swiss"]
[EventCountry "ITA"]
[SourceTitle "playchess.com"]
[Source "ChessBase"]
[SourceQuality "1"]
[TimeControl "5400+30"]

1. d4 {[%emt 0:00:30]} d5 {[%emt 0:00:08]} 2. c4 {[%emt 0:00:00]} e6 {[%emt 0:00:05]} 3. Nc3 {[%emt 0:00:00]} Nf6 {[%emt 0:00:07]} 4. cxd5 {[%emt 0:00:00]} exd5 {[%emt 0:00:08]} 5. Bg5 {[%emt 0:00:00]} Be7 {[%emt 0:00:10]} 6. e3 {[%emt 0:00:11]} c6 {[%emt 0:00:34]} 7. Bd3 {[%emt 0:00:25]} O-O {[%emt 0:00:36]} 8. Qc2 {[%emt 0:00:26]} h6 {[%emt 0:00:17]} 9. Bh4 {[%emt 0:00:07]} Re8 {[%emt 0:01:00]} 10. Nge2 {[%emt 0:00:42]} a5 {[%emt 0:01:01]} 11. O-O {[%emt 0:00:39]} Na6 {[%emt 0:02:45]} 12. a3 {[%emt 0:00:51]} Nc7 {[%emt 0:00:37]} 13. f3 {[%emt 0:00:24]} c5 {[%emt 0:01:24]} 14. Bf2 {[%emt 0:00:55]} c4 {[%emt 0:01:22]} 15. Bf5 {[%emt 0:00:08]} b5 {[%emt 0:03:39]} 16. Bxc8 {[%emt 0:03:23]} Rxc8 {[%emt 0:02:13]} 17. b3 {[%emt 0:01:15]} b4 {[%emt 0:03:44]} 18. axb4 {[%emt 0:00:23]} axb4 {[%emt 0:00:34]} 19. Na2 {[%emt 0:04:32]} Nb5 {[%emt 0:02:31]} 20. e4 {[%emt 0:01:07]} dxe4 {[%emt 0:04:28]} 21. fxe4 {[%emt 0:00:08]} Na3 {[%emt 0:01:21]} 22. Qb2 {[%emt 0:02:27]} c3 {[%emt 0:02:53]} 23. Qc1 {[%emt 0:00:15]} Nxe4 {[%emt 0:01:34]} 24. Be3 {[%emt 0:00:48]} Nf6 {[%emt 0:09:07]} 25. Ng3 {[%emt 0:02:11]} Nd5 {[%emt 0:02:12]} 26. Nf5 {[%emt 0:00:50]} Nxe3 {[%emt 0:01:45]} 27. Qxe3 {[%emt 0:01:32]} Bg5 {[%emt 0:05:06]} 28. Qg3 {[%emt 1:20:21]} Nc2 {[%emt 0:02:53]} 29. Rad1 {[%emt 0:00:00]} Ne3 {[%emt 0:01:16]} 30. Nxe3 {[%emt 0:00:00]} Bxe3+ {[%emt 0:00:55]} 31. Kh1 {[%emt 0:00:00]} c2 {[%emt 0:01:13]} 32. Rde1 {[%emt 0:00:00]} Qxd4 {[%emt 0:03:14]} 33. Qf3 {[%emt 0:00:00]} f6 {[%emt 0:01:03]} 34. Nc1 {[%emt 0:00:00]} Bxc1 {[%emt 0:01:31]} 35. Rxc1 {[%emt 0:00:00]} Kh8 {[%emt 0:01:31]} 36. h3 {[%emt 0:00:00]} Red8 {[%emt 0:07:44]} 37. Qf5 {[%emt 0:00:00]} Qd5 {[%emt 0:01:44]} 38. Qg6 {[%emt 0:00:00]} Qxb3 {[%emt 0:02:59]} 39. Kh2 {[%emt 0:00:00]} Qe6 {[%emt 0:00:43]} 40. Rxc2 {[%emt 0:00:00]} Rxc2 {[%emt 0:00:48]} 41. Qxc2 {[%emt 0:00:00]} b3 {[%emt 0:00:37]} 42. Qb1 {[%emt 0:00:00]} Qe5+ {[%emt 0:00:57]} 43. Kh1 {[%emt 0:00:00]} b2 {[%emt 0:01:12]} 44. Qc2 {[%emt 0:00:00]} Rb8 {[%emt 0:03:09]} 45. Rb1 {[%emt 0:00:00]} Qg3 {[%emt 0:02:59]} 46. Qe2 {[%emt 0:00:00]} Qe5 {[%emt 0:02:17]} 47. Qc2 {[%emt 0:00:00]} Qa5 {[%emt 0:02:11]} 48. Qe2 {[%emt 0:00:00]} Qb5 {[%emt 0:01:02]} 49. Qc2 {[%emt 0:00:00]} Qb4 {[%emt 0:00:51]} 50. Qc7 {[%emt 0:00:00]} Re8 {[%emt 0:02:21]} 51. Qg3 {[%emt 0:00:00]} Qd2 {[%emt 0:01:00]} 52. Kh2 {[%emt 0:00:00]} Qc2 {[%emt 0:00:57]} 53. Rxb2 {[%emt 0:00:00]} Qxb2 {[%emt 0:00:08]} 54. h4 {[%emt 0:00:00]} Qe5 {[%emt 0:00:07]} 55. Qxe5 {[%emt 0:00:00]} Rxe5 {[%emt 0:00:06]} 0-1

[Event "FIDE WCCC Open-08 2024"]
[Site "Montesilvano"]
[Date "2024.11.22"]
[Round "7.21"]
[White "Kuncoro, Leo"]
[Black "Rajabov, Abdurahmon"]
[Result "0-1"]
[ECO "C11"]
[WhiteElo "1726"]
[BlackElo "1515"]
[Annotator "NA RC"]
[PlyCount "79"]
[EventDate "2024.11.18"]
[EventType "swiss"]
[EventCountry "ITA"]
[SourceTitle "playchess.com"]
[Source "ChessBase"]
[SourceQuality "1"]
[TimeControl "5400+30"]

1. e4 {[%emt 0:00:02]} e6 {[%emt 0:00:18]} 2. d4 {[%emt 0:00:09]} d5 {[%emt 0:00:02]} 3. Nc3 {[%emt 0:00:07]} Nf6 {[%emt 0:00:09]} 4. e5 {[%emt 0:00:04]} Nfd7 {[%emt 0:00:03]} 5. Nce2 {[%emt 0:00:24]} c5 {[%emt 0:00:04]} 6. c3 {[%emt 0:00:06]} Nc6 {[%emt 0:00:06]} 7. f4 {[%emt 0:00:07]} a6 {[%emt 0:00:43]} 8. Be3 {[%emt 0:00:23]} b5 {[%emt 0:00:07]} 9. Nf3 {[%emt 0:00:10]} Qb6 {[%emt 0:00:14]} 10. dxc5 {[%emt 0:06:39]} Bxc5 {[%emt 0:00:06]} 11. Ned4 {[%emt 0:01:00]} b4 {[%emt 0:06:43]} 12. Bd3 {[%emt 0:08:12]} h6 {[%emt 0:00:47]} 13. Rb1 {[%emt 0:09:01]} Rb8 {[%emt 0:00:43]} 14. a3 {[%emt 0:10:47]} bxa3 {[%emt 0:03:08]} 15. bxa3 {[%emt 0:00:17]} Qc7 {[%emt 0:01:15]} 16. Rxb8 {[%emt 0:00:36]} Ncxb8 {[%emt 0:00:39]} 17. Qb3 {[%emt 0:10:25]} Qa5 {[%emt 0:00:57]} 18. f5 {[%emt 0:02:46]} exf5 {[%emt 0:06:48]} 19. Nxf5 {[%emt 0:03:50]} Bxe3 {[%emt 0:00:47]} 20. Nxe3 {[%emt 0:00:41]} Nc5 {[%emt 1:16:51]} 21. Qc2 {[%emt 0:06:47]} Be6 {[%emt 0:00:00]} 22. O-O {[%emt 0:01:56]} O-O {[%emt 0:00:00]} 23. Ra1 {[%emt 0:07:37]} Nc6 {[%emt 0:00:00]} 24. Nd4 {[%emt 0:00:48]} Nxe5 {[%emt 0:00:00]} 25. Bf5 {[%emt 0:01:18]} Bxf5 {[%emt 0:00:00]} 26. Ndxf5 {[%emt 0:00:53]} Kh8 {[%emt 0:00:00]} 27. Nxd5 {[%emt 0:03:56]} Ncd7 {[%emt 0:03:30]} 28. Qd2 {[%emt 0:02:02]} Nc4 {[%emt 0:00:00]} 29. Qd4 {[%emt 0:02:29]} Nde5 {[%emt 0:00:00]} 30. Re1 {[%emt 0:03:56]} Rd8 {[%emt 0:00:00]} 31. Rxe5 {[%emt 0:02:35]} Nxe5 {[%emt 0:00:00]} 32. Qxe5 {[%emt 0:01:21]} Qc5+ {[%emt 0:00:00]} 33. Kf1 {[%emt 0:07:55]} Qb5+ {[%emt 0:00:00]} 34. Kf2 {[%emt 0:01:23]} Qc5+ {[%emt 0:00:00]} 35. Kf1 {[%emt 0:04:24]} Qc4+ {[%emt 0:00:00]} 36. Kg1 {[%emt 0:01:26]} Qc5+ {[%emt 0:00:00]} 37. Kh1 {[%emt 0:01:14]} Qf8 {[%emt 0:00:00]} 38. Kg1 {[%emt 0:01:06]} Qc5+ {[%emt 0:00:00]} 39. Kf1 {[%emt 0:00:11]} Qc4+ {[%emt 0:00:00]} 40. Kf2 {[%emt 0:01:27]} 0-1

[Event "FIDE WCCC Open-08 2024"]
[Site "Montesilvano"]
[Date "2024.11.22"]
[Round "7.22"]
[White "Charyyev Charyhekim"]
[Black "Mohamed Fouad, Yahia"]
[Result "1-0"]
[ECO "D00"]
[WhiteElo "1589"]
[BlackElo "1705"]
[Annotator "NA RC"]
[PlyCount "143"]
[EventDate "2024.11.18"]
[EventType "swiss"]
[EventCountry "ITA"]
[SourceTitle "playchess.com"]
[Source "ChessBase"]
[SourceQuality "1"]
[TimeControl "5400+30"]

1. d4 {[%emt 0:00:04]} d5 {[%emt 0:00:18]} 2. Bf4 {[%emt 0:00:09]} Nf6 {[%emt 0:00:27]} 3. e3 {[%emt 0:00:22]} c5 {[%emt 0:00:29]} 4. dxc5 {[%emt 0:03:46]} Qa5+ {[%emt 0:01:24]} 5. Nd2 {[%emt 0:07:13]} Qxc5 {[%emt 0:01:30]} 6. Ngf3 {[%emt 0:08:53]} Nc6 {[%emt 0:11:23]} 7. c3 {[%emt 0:06:31]} Bg4 {[%emt 0:03:15]} 8. Bc7 {[%emt 0:14:44]} e6 {[%emt 0:09:24]} 9. Qb3 {[%emt 0:07:30]} b6 {[%emt 0:07:27]} 10. Ba6 {[%emt 0:08:09]} Bxf3 {[%emt 0:15:21]} 11. Nxf3 {[%emt 0:01:15]} Na5 {[%emt 0:03:07]} 12. Bb5+ {[%emt 0:05:44]} Nd7 {[%emt 0:00:38]} 13. Bxd7+ {[%emt 0:15:35]} Kxd7 {[%emt 0:00:14]} 14. Qa4+ {[%emt 0:04:27]} Kxc7 {[%emt 0:01:33]} 15. Qf4+ {[%emt 0:00:40]} Qd6 {[%emt 0:01:44]} 16. Qxf7+ {[%emt 0:00:23]} Qd7 {[%emt 0:00:15]} 17. Qh5 {[%emt 0:08:11]} g6 {[%emt 0:00:51]} 18. Qg4 {[%emt 0:02:28]} Bd6 {[%emt 0:01:00]} 19. Ng5 {[%emt 0:00:54]} Rae8 {[%emt 0:01:22]} 20. O-O {[%emt 0:01:06]} h6 {[%emt 0:01:24]} 21. Nf3 {[%emt 0:01:32]} g5 {[%emt 0:00:39]} 22. Qd4 {[%emt 0:00:36]} Nc6 {[%emt 0:00:22]} 23. Qa4 {[%emt 0:00:34]} Rhf8 {[%emt 0:02:17]} 24. Nd4 {[%emt 0:00:25]} a5 {[%emt 0:02:48]} 25. Qc2 {[%emt 0:00:37]} Nxd4 {[%emt 0:01:28]} 26. cxd4+ {[%emt 0:00:11]} Kb7 {[%emt 0:00:06]} 27. Qd2 {[%emt 0:00:50]} Rc8 {[%emt 0:00:21]} 28. Rac1 {[%emt 0:00:33]} Rxc1 {[%emt 0:00:32]} 29. Qxc1 {[%emt 0:00:54]} Rc8 {[%emt 0:00:07]} 30. Qb1 {[%emt 0:00:09]} Qf7 {[%emt 0:00:31]} 31. a3 {[%emt 0:00:16]} Qf5 {[%emt 0:00:19]} 32. Qd1 {[%emt 0:00:23]} Qg6 {[%emt 0:00:42]} 33. Qa4 {[%emt 0:00:12]} Rc7 {[%emt 0:00:29]} 34. b4 {[%emt 0:00:26]} Qc2 {[%emt 0:00:44]} 35. Qe8 {[%emt 0:00:16]} Qc6 {[%emt 0:00:28]} 36. Qg6 {[%emt 0:00:27]} axb4 {[%emt 0:00:27]} 37. axb4 {[%emt 0:00:28]} Bxb4 {[%emt 0:03:32]} 38. g3 {[%emt 0:00:32]} Be7 {[%emt 0:01:39]} 39. Qb1 {[%emt 0:00:34]} b5 {[%emt 0:00:38]} 40. Qb3 {[%emt 0:00:49]} b4 {[%emt 0:00:29]} 41. Ra1 {[%emt 0:00:24]} Qb6 {[%emt 0:02:18]} 42. Qa4 {[%emt 0:00:23]} Rc6 {[%emt 0:04:16]} 43. Qa8+ {[%emt 0:00:43]} Kc7 {[%emt 0:00:09]} 44. Ra7+ {[%emt 0:00:07]} Kd6 {[%emt 0:00:09]} 45. Rb7 {[%emt 0:00:26]} Qd8 {[%emt 0:00:34]} 46. Rb8 {[%emt 0:00:13]} Qc7 {[%emt 0:00:47]} 47. Rb7 {[%emt 0:00:31]} Qc8 {[%emt 0:00:29]} 48. Rb8 {[%emt 0:00:07]} Rc1+ {[%emt 0:01:06]} 49. Kg2 {[%emt 0:00:10]} Qc6 {[%emt 0:00:26]} 50. Qa7 {[%emt 0:00:32]} Qc7 {[%emt 0:02:02]} 51. Rb6+ {[%emt 0:01:05]} Rc6 {[%emt 0:00:22]} 52. Rb7 {[%emt 0:00:07]} Qd8 {[%emt 0:00:35]} 53. Rb8 {[%emt 0:00:29]} Qd7 {[%emt 0:00:14]} 54. Rb7 {[%emt 0:00:46]} Qe8 {[%emt 0:00:37]} 55. Qa4 {[%emt 0:01:22]} e5 {[%emt 0:03:25]} 56. dxe5+ {[%emt 0:00:38]} Kxe5 {[%emt 0:00:31]} 57. Rc7 {[%emt 0:00:36]} Rxc7 {[%emt 0:01:43]} 58. Qxe8 {[%emt 0:00:11]} Rb7 {[%emt 0:00:16]} 59. Qh8+ {[%emt 0:00:32]} Ke6 {[%emt 0:00:18]} 60. Qxh6+ {[%emt 0:00:14]} Bf6 {[%emt 0:00:30]} 61. Qf8 {[%emt 0:00:39]} b3 {[%emt 0:00:43]} 62. Qc8+ {[%emt 0:00:05]} Rd7 {[%emt 0:00:12]} 63. Qa6+ {[%emt 0:00:37]} Kf7 {[%emt 0:00:15]} 64. Qc6 {[%emt 0:01:13]} Ke7 {[%emt 0:00:48]} 65. Qc5+ {[%emt 0:00:26]} Kf7 {[%emt 0:00:06]} 66. Qb5 {[%emt 0:00:12]} b2 {[%emt 0:00:46]} 67. Qxd7+ {[%emt 0:00:09]} Kg6 {[%emt 0:00:05]} 68. Qb5 {[%emt 0:00:18]} g4 {[%emt 0:00:11]} 69. h3 {[%emt 0:00:17]} gxh3+ {[%emt 0:00:08]} 70. Kxh3 {[%emt 0:00:05]} Kg7 {[%emt 0:00:11]} 71. f4 {[%emt 0:00:13]} Kg6 {[%emt 0:00:04]} 72. g4 {[%emt 0:00:12]} 1-0

[Event "FIDE WCCC Open-08 2024"]
[Site "Montesilvano"]
[Date "2024.11.22"]
[Round "7.23"]
[White "Sahin, Bora"]
[Black "Pera, Mikolaj"]
[Result "0-1"]
[ECO "B26"]
[WhiteElo "1703"]
[BlackElo "1446"]
[Annotator "NA RC"]
[PlyCount "66"]
[EventDate "2024.11.18"]
[EventType "swiss"]
[EventCountry "ITA"]
[SourceTitle "playchess.com"]
[Source "ChessBase"]
[SourceQuality "1"]
[TimeControl "5400+30"]

1. e4 {[%emt 0:00:03]} c5 {[%emt 0:00:08]} 2. Nc3 {[%emt 0:00:05]} d6 {[%emt 0:00:07]} 3. g3 {[%emt 0:00:23]} Nf6 {[%emt 0:00:19]} 4. Bg2 {[%emt 0:00:04]} Nc6 {[%emt 0:00:29]} 5. d3 {[%emt 0:00:07]} g6 {[%emt 0:00:18]} 6. Be3 {[%emt 0:00:14]} Bg7 {[%emt 0:00:12]} 7. Qd2 {[%emt 0:00:06]} Rb8 {[%emt 0:00:58]} 8. Bh6 {[%emt 0:01:21]} O-O {[%emt 0:02:07]} 9. h4 {[%emt 0:03:33]} Nd4 {[%emt 0:04:06]} 10. Bxg7 {[%emt 0:00:35]} Kxg7 {[%emt 0:00:09]} 11. Nd1 {[%emt 0:00:15]} e6 {[%emt 0:02:58]} 12. c3 {[%emt 0:00:46]} Nc6 {[%emt 0:00:09]} 13. f4 {[%emt 0:07:41]} h5 {[%emt 0:05:53]} 14. Ne3 {[%emt 0:00:49]} Re8 {[%emt 0:04:54]} 15. Ne2 {[%emt 0:02:09]} Bd7 {[%emt 0:00:46]} 16. Rf1 {[%emt 0:07:40]} b5 {[%emt 0:01:21]} 17. f5 {[%emt 0:00:43]} exf5 {[%emt 0:00:32]} 18. exf5 {[%emt 0:00:58]} Qe7 {[%emt 0:00:18]} 19. Be4 {[%emt 0:11:02]} Nxe4 {[%emt 0:01:11]} 20. dxe4 {[%emt 0:01:09]} Qxe4 {[%emt 0:01:03]} 21. f6+ {[%emt 0:01:21]} Kh7 {[%emt 0:00:49]} 22. Nd5 {[%emt 0:16:30]} Bg4 {[%emt 0:02:08]} 23. Ndf4 {[%emt 0:02:47]} Bxe2 {[%emt 0:07:25]} 24. Nxe2 {[%emt 0:01:21]} Re6 {[%emt 0:01:52]} 25. Kd1 {[%emt 0:07:31]} Ne5 {[%emt 0:07:09]} 26. Ng1 {[%emt 0:16:48]} Nc4 {[%emt 0:56:09]} 27. Qf2 {[%emt 0:10:43]} Ne3+ {[%emt 0:00:00]} 28. Kc1 {[%emt 0:02:05]} Nxf1 {[%emt 0:00:00]} 29. Qxf1 {[%emt 0:00:44]} Qe1+ {[%emt 0:00:00]} 30. Kc2 {[%emt 0:00:29]} Qxg3 {[%emt 0:00:00]} 31. Nf3 {[%emt 0:00:42]} Re3 {[%emt 0:00:00]} 32. Ng5+ {[%emt 0:00:18]} Kg8 {[%emt 0:00:00]} 33. Rd1 {[%emt 0:04:14]} Qxh4 {[%emt 0:00:00]} 0-1

[Event "FIDE WCCC Open-08 2024"]
[Site "Montesilvano"]
[Date "2024.11.22"]
[Round "7.24"]
[White "Szumiec, Jan"]
[Black "Wang, Yihan(Ah)"]
[Result "0-1"]
[ECO "B42"]
[WhiteElo "1678"]
[BlackElo "1630"]
[Annotator "NA RC"]
[PlyCount "86"]
[EventDate "2024.11.18"]
[EventType "swiss"]
[EventCountry "ITA"]
[SourceTitle "playchess.com"]
[Source "ChessBase"]
[SourceQuality "1"]
[TimeControl "5400+30"]

1. e4 {[%emt 0:00:02]} c5 {[%emt 0:00:23]} 2. Nf3 {[%emt 0:00:07]} e6 {[%emt 1:31:07]} 3. d4 {[%emt 0:00:04]} cxd4 {[%emt 0:00:00]} 4. Nxd4 {[%emt 0:00:12]} a6 {[%emt 0:00:00]} 5. Bd3 {[%emt 0:00:11]} Qc7 {[%emt 0:00:00]} 6. O-O {[%emt 0:02:03]} Nf6 {[%emt 0:00:00]} 7. c4 {[%emt 0:01:16]} d6 {[%emt 0:00:00]} 8. Qe2 {[%emt 0:01:51]} Be7 {[%emt 0:00:00]} 9. Nc3 {[%emt 0:01:40]} b6 {[%emt 0:00:00]} 10. f4 {[%emt 0:01:38]} Nbd7 {[%emt 0:00:00]} 11. Bd2 {[%emt 0:00:27]} Bb7 {[%emt 0:00:00]} 12. Kh1 {[%emt 0:02:34]} O-O {[%emt 0:00:00]} 13. f5 {[%emt 0:03:03]} Nc5 {[%emt 0:00:00]} 14. fxe6 {[%emt 0:00:33]} fxe6 {[%emt 0:00:00]} 15. Bc2 {[%emt 0:00:27]} Bc8 {[%emt 0:00:00]} 16. b4 {[%emt 0:00:07]} Nb7 {[%emt 0:00:00]} 17. Qd3 {[%emt 0:00:09]} Bd7 {[%emt 0:00:00]} 18. e5 {[%emt 0:13:46]} dxe5 {[%emt 0:00:00]} 19. Rxf6 {[%emt 0:00:14]} Bxf6 {[%emt 0:00:00]} 20. Qxh7+ {[%emt 0:00:11]} Kf7 {[%emt 0:00:00]} 21. Qg6+ {[%emt 0:15:00]} Ke7 {[%emt 0:00:00]} 22. Bg5 {[%emt 0:03:51]} Qxc4 {[%emt 0:08:27]} 23. Qxg7+ {[%emt 0:04:44]} Kd6 {[%emt 0:00:38]} 24. Ndb5+ {[%emt 0:09:06]} axb5 {[%emt 0:00:50]} 25. Rd1+ {[%emt 0:00:19]} Kc7 {[%emt 0:00:35]} 26. Bxf6 {[%emt 0:15:42]} Rxf6 {[%emt 0:00:26]} 27. Qxf6 {[%emt 0:02:52]} Qxc3 {[%emt 0:00:24]} 28. Be4 {[%emt 0:01:25]} Rxa2 {[%emt 0:00:35]} 29. Bxb7 {[%emt 0:00:18]} Ra1 {[%emt 0:00:33]} 30. Qf1 {[%emt 0:00:31]} Rxd1 {[%emt 0:00:25]} 31. Qxd1 {[%emt 0:00:04]} Qd4 {[%emt 0:00:11]} 32. Bf3 {[%emt 0:00:51]} Qxb4 {[%emt 0:00:36]} 33. Qa1 {[%emt 0:00:33]} Kd6 {[%emt 0:00:27]} 34. h3 {[%emt 0:01:11]} Qd4 {[%emt 0:00:17]} 35. Qa7 {[%emt 0:00:28]} b4 {[%emt 0:00:20]} 36. Qb8+ {[%emt 0:00:06]} Ke7 {[%emt 0:00:16]} 37. Qg8 {[%emt 0:00:31]} b3 {[%emt 0:00:45]} 38. Qg7+ {[%emt 0:00:50]} Kd6 {[%emt 0:00:24]} 39. Qf8+ {[%emt 0:00:07]} Kc7 {[%emt 0:00:28]} 40. Qh8 {[%emt 0:01:11]} b2 {[%emt 0:01:08]} 41. Qh7 {[%emt 0:00:10]} Kd6 {[%emt 0:00:26]} 42. h4 {[%emt 0:00:30]} Bc6 {[%emt 0:00:31]} 43. Be2 {[%emt 0:00:54]} Be4 {[%emt 0:00:29]} 0-1

[Event "FIDE WCCC Open-08 2024"]
[Site "Montesilvano"]
[Date "2024.11.22"]
[Round "7.25"]
[White "Dzelnik, Robert"]
[Black "Muratshin, Ramazan"]
[Result "0-1"]
[ECO "C17"]
[WhiteElo "1822"]
[BlackElo "1597"]
[Annotator "NA RC"]
[PlyCount "82"]
[EventDate "2024.11.18"]
[EventType "swiss"]
[EventCountry "ITA"]
[SourceTitle "playchess.com"]
[Source "ChessBase"]
[SourceQuality "1"]
[TimeControl "5400+30"]

1. e4 {[%emt 0:00:03]} e6 {[%emt 0:00:07]} 2. d4 {[%emt 0:00:06]} d5 {[%emt 0:00:06]} 3. Nc3 {[%emt 0:00:10]} Bb4 {[%emt 0:02:33]} 4. e5 {[%emt 0:00:36]} c5 {[%emt 0:02:13]} 5. Nf3 {[%emt 0:00:27]} Nc6 {[%emt 0:00:33]} 6. Bb5 {[%emt 0:03:44]} Qb6 {[%emt 0:01:02]} 7. Bxc6+ {[%emt 0:04:18]} bxc6 {[%emt 0:00:07]} 8. Be3 {[%emt 0:00:51]} cxd4 {[%emt 0:01:01]} 9. Nxd4 {[%emt 0:03:56]} c5 {[%emt 0:00:07]} 10. Qg4 {[%emt 0:01:23]} g6 {[%emt 0:01:58]} 11. Ndb5 {[%emt 0:01:09]} Qxb5 {[%emt 0:00:11]} 12. Bd2 {[%emt 0:00:58]} Bxc3 {[%emt 0:00:30]} 13. bxc3 {[%emt 0:00:41]} Ba6 {[%emt 0:00:24]} 14. a4 {[%emt 0:00:33]} Qc4 {[%emt 0:00:09]} 15. Qxc4 {[%emt 0:00:42]} Bxc4 {[%emt 0:00:06]} 16. Rb1 {[%emt 0:00:14]} Ne7 {[%emt 0:00:07]} 17. Rb7 {[%emt 0:00:27]} Nc6 {[%emt 0:00:25]} 18. f4 {[%emt 0:01:57]} Rb8 {[%emt 0:00:07]} 19. Rxb8+ {[%emt 0:00:25]} Nxb8 {[%emt 0:00:07]} 20. Kf2 {[%emt 0:05:16]} Kd7 {[%emt 0:00:36]} 21. Rb1 {[%emt 0:02:00]} Kc7 {[%emt 0:00:17]} 22. Kg3 {[%emt 0:05:54]} Nc6 {[%emt 0:01:19]} 23. Kh4 {[%emt 0:05:27]} h6 {[%emt 0:00:36]} 24. g4 {[%emt 0:00:23]} Rb8 {[%emt 0:00:20]} 25. Rxb8 {[%emt 0:03:57]} Kxb8 {[%emt 0:00:06]} 26. f5 {[%emt 0:00:32]} Nxe5 {[%emt 0:01:14]} 27. Bxh6 {[%emt 0:00:26]} Kb7 {[%emt 1:27:39]} 28. fxe6 {[%emt 0:01:55]} fxe6 {[%emt 0:00:00]} 29. Kg5 {[%emt 0:00:53]} Be2 {[%emt 0:00:00]} 30. Bf8 {[%emt 0:01:40]} c4 {[%emt 0:00:00]} 31. Bg7 {[%emt 0:00:22]} Nxg4 {[%emt 0:00:00]} 32. Kxg6 {[%emt 0:00:13]} Nxh2 {[%emt 0:00:00]} 33. Kf6 {[%emt 0:02:02]} Bg4 {[%emt 0:00:00]} 34. Ke7 {[%emt 0:00:16]} Nf3 {[%emt 0:00:00]} 35. Kd6 {[%emt 0:01:36]} Ne1 {[%emt 0:00:00]} 36. Kc5 {[%emt 0:00:36]} Nxc2 {[%emt 0:00:00]} 37. Kb5 {[%emt 0:00:18]} Ne3 {[%emt 0:00:00]} 38. Be5 {[%emt 0:00:13]} Nf5 {[%emt 0:00:00]} 39. a5 {[%emt 0:00:37]} a6+ {[%emt 0:00:00]} 40. Kc5 {[%emt 0:00:34]} Ne7 {[%emt 0:00:00]} 41. Kb4 {[%emt 0:02:06]} Nc6+ {[%emt 0:00:00]} 0-1